bitfinex/quotes_BTCUSD_20240821
["timestamp","ask_amount","ask_price","bid_price","bid_amount"]
[1724198779154,0.01546776,59301.0,59299.0,0.0602]
[1724198779355,0.000822,59309.0,59302.0,0.03386]
[1724198779587,0.01546498,59308.0,59305.0,0.03386]
[1724198779763,0.01546498,59307.0,59305.0,0.03386]
[1724198779959,0.01546498,59306.0,59305.0,0.03386]
[1724198780389,0.01546498,59308.0,59305.0,0.03386]
[1724198780589,0.01546498,59307.0,59305.0,0.03386]
[1724198780774,0.01546498,59306.0,59305.0,0.03386]
[1724198781951,0.01546498,59306.0,59305.0,0.04786]
[1724198782181,0.01546498,59306.0,59305.0,0.06186]
[1724198782350,0.01546459,59306.0,59305.0,0.03386]
[1724198782727,0.01646446,59306.0,59305.0,0.04786]
[1724198782930,0.0280064,59306.0,59305.0,0.04786]
[1724198783174,0.0300064,59306.0,59305.0,0.04786]
[1724198783433,0.0300064,59306.0,59305.0,0.06186]
[1724198783434,0.0270064,59306.0,59305.0,0.06186]
[1724198783648,0.05506018,59306.0,59305.0,0.03386]
[1724198784128,0.0270064,59306.0,59305.0,0.03386]
[1724198784903,0.0270064,59306.0,59305.0,0.06186]
[1724198785100,0.0270064,59306.0,59305.0,0.04786]
[1724198785304,0.0270064,59306.0,59305.0,0.03386]
[1724198785873,0.0270064,59306.0,59305.0,0.04786]
[1724198786039,0.0270064,59306.0,59305.0,0.06186]
[1724198786799,0.01546446,59306.0,59305.0,0.06186]
[1724198786930,0.01546446,59306.0,59305.0,0.074066]
[1724198787952,0.01646446,59306.0,59305.0,0.074066]
[1724198788322,0.01546446,59306.0,59305.0,0.06186]
[1724198789109,0.01646446,59306.0,59305.0,0.06186]
[1724198789313,0.01946446,59306.0,59305.0,0.028]
[1724198789470,0.05909281,59306.0,59305.0,0.028]
[1724198790456,0.05991481,59306.0,59305.0,0.028]
[1724198790986,0.08811481,59306.0,59305.0,0.028]
[1724198791423,0.09233036,59306.0,59305.0,0.028]
[1724198791844,0.08811481,59306.0,59305.0,0.028]
[1724198792047,0.11902662,59306.0,59305.0,0.028]
[1724198792594,0.05991481,59306.0,59305.0,0.014]
[1724198793299,0.05991481,59306.0,59305.0,0.026]
[1724198793922,0.05991095,59306.0,59305.0,0.026]
[1724198794333,0.05591095,59306.0,59305.0,0.0881]
[1724198794531,0.05591095,59306.0,59305.0,0.10457]
[1724198794532,0.02785988,59306.0,59305.0,0.10457]
[1724198795519,0.01239791,59306.0,59305.0,0.10457]
[1724198795734,0.01239791,59306.0,59305.0,0.18637]
[1724198796137,0.000822,59306.0,59305.0,0.18637]
[1724198796341,0.002822,59306.0,59305.0,0.1699]
[1724198796564,0.01828492,59306.0,59305.0,0.0881]
[1724198796820,0.02984547,59306.0,59305.0,0.0881]
[1724198797150,0.10814547,59306.0,59305.0,0.026]
[1724198797310,0.13619686,59306.0,59305.0,0.026]
[1724198797511,0.19529742,59306.0,59305.0,0.026]
[1724198797719,0.11279801,59306.0,59305.0,0.026]
[1724198797880,0.16438987,59306.0,59305.0,0.026]
[1724198798079,0.13634249,59306.0,59305.0,0.026]
[1724198798275,0.16860586,59306.0,59305.0,0.026]
[1724198798473,0.17060586,59306.0,59305.0,0.026]
[1724198799769,0.16638987,59306.0,59305.0,0.026]
[1724198801230,0.17060595,59306.0,59305.0,0.026]
[1724198803206,0.19888436,59306.0,59305.0,0.026]
[1724198805474,0.21088645,59306.0,59305.0,0.026]
[1724198805683,0.23892799,59306.0,59305.0,0.026]
[1724198806617,0.19887535,59306.0,59305.0,0.026]
[1724198807246,0.19887535,59306.0,59305.0,0.014]
[1724198807466,0.19887535,59306.0,59305.0,0.004]
[1724198807866,0.19887535,59306.0,59305.0,0.01]
[1724198808071,0.16645927,59306.0,59305.0,0.01]
[1724198808832,0.08815927,59306.0,59305.0,0.01]
[1724198810667,0.09093395,59306.0,59305.0,0.0886]
[1724198810864,0.05588086,59306.0,59305.0,0.0886]
[1724198811654,0.05588086,59306.0,59305.0,0.16907]
[1724198812247,0.05688086,59306.0,59305.0,0.16907]
[1724198812442,0.05788086,59306.0,59305.0,0.1537]
[1724198812876,0.05988086,59306.0,59305.0,0.1537]
[1724198813093,0.01638255,59306.0,59305.0,0.1537]
[1724198813293,0.05989473,59306.0,59305.0,0.1537]
[1724198813490,0.05989473,59306.0,59305.0,0.0651]
[1724198813812,0.05989473,59306.0,59305.0,0.0741]
[1724198814013,0.05989473,59306.0,59305.0,0.0861]
[1724198814217,0.05689473,59306.0,59305.0,0.0861]
[1724198814431,0.05789473,59306.0,59305.0,0.1647]
[1724198814638,0.05689473,59306.0,59305.0,0.1647]
[1724198815048,0.05589473,59306.0,59305.0,0.1647]
[1724198815254,0.05989473,59306.0,59305.0,0.1647]
[1724198816896,0.01638255,59306.0,59305.0,0.1647]
[1724198817085,0.03184404,59306.0,59305.0,0.1647]
[1724198817306,0.01638255,59306.0,59305.0,0.1647]
[1724198817504,0.02784216,59306.0,59305.0,0.1647]
[1724198817918,0.05588867,59306.0,59305.0,0.1647]
[1724198818251,0.02784216,59306.0,59305.0,0.1647]
[1724198818452,0.01238255,59306.0,59305.0,0.18117]
[1724198818652,0.05588752,59306.0,59305.0,0.18117]
[1724198818859,0.05588752,59306.0,59305.0,0.1647]
[1724198819069,0.02784216,59306.0,59305.0,0.1647]
[1724198819833,0.05588778,59306.0,59305.0,0.1647]
[1724198820204,0.02784216,59306.0,59305.0,0.1647]
[1724198820411,0.01238255,59306.0,59305.0,0.1647]
[1724198820824,0.09938095,59306.0,59305.0,0.1647]
[1724198820998,0.08392398,59306.0,59305.0,0.1647]
[1724198821200,0.09938095,59306.0,59305.0,0.18117]
[1724198821425,0.07133872,59306.0,59305.0,0.18117]
[1724198821641,0.07133872,59306.0,59305.0,0.1647]
[1724198822043,0.07133872,59306.0,59305.0,0.19856]
[1724198822647,0.0443212,59306.0,59305.0,0.18656]
[1724198823004,0.0443212,59306.0,59305.0,0.20056]
[1724198823506,0.0443212,59306.0,59305.0,0.19156]
[1724198823945,0.0443212,59306.0,59305.0,0.22977282]
[1724198824151,0.0443212,59306.0,59305.0,0.20177282]
[1724198824358,0.0443212,59306.0,59305.0,0.21577282]
[1724198824558,0.0443212,59306.0,59305.0,0.22977282]
[1724198825799,0.0443212,59306.0,59305.0,0.21577282]
[1724198826179,0.0443212,59306.0,59305.0,0.22977282]
[1724198827209,0.0443212,59306.0,59305.0,0.10847282]
[1724198827423,0.0443212,59306.0,59305.0,0.08426]
[1724198827561,0.07137337,59306.0,59305.0,0.08426]
[1724198827972,0.05591755,59306.0,59305.0,0.08426]
[1724198828157,0.07137333,59306.0,59305.0,0.08426]
[1724198829032,0.05591755,59306.0,59305.0,0.08426]
[1724198829221,0.02787409,59306.0,59305.0,0.08426]
[1724198830199,0.02787409,59306.0,59305.0,0.14846]
[1724198831022,0.01627774,59306.0,59305.0,0.14846]
[1724198831578,0.01628137,59306.0,59305.0,0.14846]
[1724198833821,0.000822,59306.0,59305.0,0.14846]
[1724198834032,0.000822,59306.0,59305.0,0.15183151]
[1724198834233,0.000822,59306.0,59305.0,0.25183151]
[1724198834426,0.000822,59306.0,59305.0,0.32765063]
[1724198834630,0.000822,59306.0,59305.0,0.70196104]
[1724198834855,0.000822,59306.0,59305.0,0.84981592]
[1724198834992,0.000822,59306.0,59305.0,0.74872376]
[1724198835387,0.000822,59306.0,59305.0,0.84977386]
[1724198835593,0.000822,59306.0,59305.0,0.74872376]
[1724198836596,0.000822,59306.0,59305.0,0.82447746]
[1724198836820,0.000822,59306.0,59305.0,0.63607279]
[1724198837019,0.000822,59306.0,59305.0,0.29896421]
[1724198837235,0.000822,59306.0,59305.0,0.23446]
[1724198837614,0.000822,59306.0,59305.0,0.25183161]
[1724198837756,0.000822,59306.0,59305.0,0.23783161]
[1724198838166,0.000822,59306.0,59305.0,0.74399331]
[1724198838356,0.000822,59306.0,59305.0,0.71867966]
[1724198838572,0.000822,59306.0,59305.0,0.70189413]
[1724198838795,0.000822,59306.0,59305.0,0.68452252]
[1724198839022,0.000822,59306.0,59305.0,0.23446]
[1724198839234,0.000822,59306.0,59305.0,0.24846]
[1724198839430,0.000822,59306.0,59305.0,0.28494562]
[1724198839720,0.000822,59306.0,59305.0,0.27094562]
[1724198839926,0.000822,59306.0,59305.0,0.28494562]
[1724198840720,0.000822,59306.0,59305.0,0.27094562]
[1724198840887,0.000822,59306.0,59305.0,0.28494562]
[1724198841093,0.000822,59306.0,59305.0,0.23783161]
[1724198841292,0.000822,59306.0,59305.0,0.25183161]
[1724198841992,0.000822,59306.0,59305.0,0.25159187]
[1724198842195,0.000822,59306.0,59305.0,0.23759187]
[1724198842401,0.000822,59306.0,59305.0,0.25159187]
[1724198843156,0.000822,59306.0,59305.0,0.24822026]
[1724198843397,0.000822,59306.0,59305.0,0.25159188]
[1724198843604,0.000822,59306.0,59305.0,0.12606]
[1724198843814,0.01628142,59306.0,59305.0,0.06186]
[1724198844100,0.02792361,59306.0,59305.0,0.06186]
[1724198844527,0.02792361,59306.0,59305.0,0.04786]
[1724198844944,0.02792361,59306.0,59305.0,0.06186]
[1724198845151,0.02792361,59306.0,59305.0,0.04786]
[1724198845606,0.02792361,59306.0,59305.0,0.06186]
[1724198845811,0.02792361,59306.0,59305.0,0.04786]
[1724198846045,0.02792361,59306.0,59305.0,0.06186]
[1724198846487,0.02792361,59306.0,59305.0,0.04786]
[1724198846756,0.03092361,59306.0,59305.0,0.04786]
[1724198846971,0.03092361,59306.0,59305.0,0.0627631]
[1724198846972,0.0589695,59306.0,59305.0,0.0627631]
[1724198847191,0.1381695,59306.0,59305.0,0.0627631]
[1724198847617,0.1371695,59306.0,59305.0,0.0627631]
[1724198847853,0.2051695,59306.0,59305.0,0.0289031]
[1724198848073,0.26126094,59306.0,59305.0,0.0289031]
[1724198848283,0.26426094,59306.0,59305.0,0.0289031]
[1724198848502,0.2051695,59306.0,59305.0,0.0289031]
[1724198848706,0.2051695,59306.0,59305.0,0.0149031]
[1724198848912,0.2051695,59306.0,59305.0,0.0009031]
[1724198849133,0.2051695,59306.0,59305.0,0.0149031]
[1724198849732,0.2051695,59306.0,59305.0,0.0289031]
[1724198850308,0.2051695,59306.0,59305.0,0.0009031]
[1724198850521,0.2051695,59306.0,59305.0,0.0149031]
[1724198850728,0.2051695,59306.0,59305.0,0.0289031]
[1724198851075,0.20517124,59306.0,59305.0,0.0289031]
[1724198854638,0.17712686,59306.0,59305.0,0.0289031]
[1724198854840,0.20517928,59306.0,59305.0,0.0289031]
[1724198855679,0.13917928,59306.0,59305.0,0.0289031]
[1724198855888,0.05597928,59306.0,59305.0,0.0289031]
[1724198856123,0.02792686,59306.0,59305.0,0.0289031]
[1724198856459,0.01628467,59306.0,59305.0,0.0289031]
[1724198857508,0.02788355,59306.0,59305.0,0.0289031]
[1724198858260,0.01628467,59306.0,59305.0,0.0289031]
[1724198858468,0.000822,59306.0,59305.0,0.0289031]
[1724198858667,0.01628561,59306.0,59305.0,0.0289031]
[1724198858842,0.02789197,59306.0,59305.0,0.0289031]
[1724198859360,0.02789197,59306.0,59305.0,0.1120031]
[1724198859525,0.01628561,59306.0,59305.0,0.1120031]
[1724198859963,0.01628561,59306.0,59305.0,0.11537522]
[1724198860763,0.01628561,59306.0,59305.0,0.1120031]
[1724198862844,0.000822,59306.0,59305.0,0.2107631]
[1724198863042,0.000822,59306.0,59305.0,0.21413481]
[1724198863262,0.000822,59306.0,59305.0,0.58846264]
[1724198863460,0.000822,59306.0,59305.0,0.66429954]
[1724198863657,0.000822,59306.0,59305.0,0.66092783]
[1724198863859,0.000822,59306.0,59305.0,0.2107631]
[1724198864126,0.000822,59306.0,59305.0,0.1136631]
[1724198864395,0.01628526,59306.0,59305.0,0.1276631]
[1724198864586,0.02789831,59306.0,59305.0,0.1276631]
[1724198864787,0.02789831,59306.0,59305.0,0.0487631]
[1724198865387,0.02789831,59306.0,59305.0,0.0627631]
[1724198865587,0.02789831,59306.0,59305.0,0.0487631]
[1724198866042,0.02789831,59306.0,59305.0,0.0627631]
[1724198866245,0.01243505,59306.0,59305.0,0.0627631]
[1724198866453,0.02889553,59306.0,59305.0,0.0487631]
[1724198866574,0.02889553,59306.0,59305.0,0.0627631]
[1724198866575,0.01243505,59306.0,59305.0,0.0627631]
[1724198866768,0.01243505,59306.0,59305.0,0.0487631]
[1724198867014,0.05594364,59306.0,59305.0,0.0487631]
[1724198867209,0.05694364,59306.0,59305.0,0.0627631]
[1724198867413,0.05694364,59306.0,59305.0,0.0487631]
[1724198867822,0.05694364,59306.0,59305.0,0.0627631]
[1724198868021,0.05694364,59306.0,59305.0,0.0487631]
[1724198868256,0.05694364,59306.0,59305.0,0.0149031]
[1724198868450,0.01343505,59306.0,59305.0,0.0289031]
[1724198868655,0.03089615,59306.0,59305.0,0.0009031]
[1724198868876,0.05594579,59306.0,59305.0,0.0009031]
[1724198869079,0.05594579,59306.0,59305.0,0.0149031]
[1724198869455,0.05594579,59306.0,59305.0,0.0487631]
[1724198870002,0.05594579,59306.0,59305.0,0.0627631]
[1724198871149,0.05594579,59306.0,59305.0,0.0487631]
[1724198871304,0.05594579,59306.0,59305.0,0.0627631]
[1724198871830,0.05594579,59306.0,59305.0,0.0009031]
[1724198872172,0.05594579,59306.0,59305.0,0.0487631]
[1724198873170,0.05594579,59306.0,59305.0,0.0627631]
[1724198873370,0.05594579,59306.0,59305.0,0.0487631]
[1724198873882,0.05594579,59306.0,59305.0,0.0627631]
[1724198874080,0.05594289,59306.0,59305.0,0.0627631]
[1724198874307,0.05594289,59306.0,59305.0,0.0487631]
[1724198874504,0.05594272,59306.0,59305.0,0.0627631]
[1724198876225,0.05894272,59306.0,59305.0,0.0627631]
[1724198876457,0.05994272,59306.0,59305.0,0.0627631]
[1724198877881,0.05993381,59306.0,59305.0,0.0627631]
[1724198878328,0.05593381,59306.0,59305.0,0.0627631]
[1724198878502,0.1170159,59306.0,59305.0,0.0627631]
[1724198878706,0.05793381,59306.0,59305.0,0.0627631]
[1724198879022,0.05593381,59306.0,59305.0,0.0627631]
[1724198879787,0.05793381,59306.0,59305.0,0.0627631]
[1724198880542,0.05993381,59306.0,59305.0,0.0627631]
[1724198880946,0.05693381,59306.0,59305.0,0.0627631]
[1724198881119,0.05694013,59306.0,59305.0,0.0627631]
[1724198881702,0.05673718,59306.0,59305.0,0.0627631]
[1724198882124,0.05773718,59306.0,59305.0,0.0627631]
[1724198882326,0.05973718,59306.0,59305.0,0.0627631]
[1724198884251,0.05573718,59306.0,59305.0,0.0627631]
[1724198884476,0.05574043,59306.0,59305.0,0.0627631]
[1724198887061,0.05577939,59306.0,59305.0,0.0627631]
[1724198888349,0.02770619,59306.0,59305.0,0.0627631]
[1724198888553,0.01609314,59306.0,59305.0,0.08202392]
[1724198888878,0.01609314,59306.0,59305.0,0.13598503]
[1724198889190,0.00061905,59306.0,59305.0,0.55976055]
[1724198889802,0.00061905,59306.0,59305.0,0.56076055]
[1724198891568,0.00061905,59306.0,59305.0,0.55976055]
[1724198893312,0.00061905,59306.0,59305.0,0.68614149]
[1724198893730,0.00061905,59306.0,59305.0,0.55976055]
[1724198894344,0.00061905,59306.0,59305.0,0.65749347]
[1724198894495,0.00061905,59306.0,59305.0,0.1627631]
[1724198894918,0.00061905,59306.0,59305.0,0.1487631]
[1724198895681,0.00061905,59306.0,59305.0,0.1627631]
[1724198895934,0.00061905,59306.0,59305.0,0.2278631]
[1724198896656,0.00061905,59306.0,59305.0,0.3056631]
[1724198896884,0.00061905,59306.0,59305.0,0.32871636]
[1724198897322,0.00061905,59306.0,59305.0,0.3090349]
[1724198897521,0.00061905,59306.0,59305.0,0.1278631]
[1724198897773,0.01609495,59306.0,59305.0,0.1278631]
[1724198897975,0.01609495,59306.0,59305.0,0.0627631]
[1724198898386,0.01609495,59306.0,59305.0,0.2029631]
[1724198898575,0.01226473,59306.0,59305.0,0.25333661]
[1724198898821,0.00061905,59306.0,59305.0,0.62766018]
[1724198899442,0.00061905,59306.0,59305.0,0.72873851]
[1724198899644,0.00061905,59306.0,59305.0,0.62764862]
[1724198900097,0.00061905,59306.0,59305.0,0.7540042]
[1724198900303,0.00061905,59306.0,59305.0,0.7287412]
[1724198900706,0.00061905,59306.0,59305.0,0.62764862]
[1724198900854,0.00061905,59306.0,59305.0,0.57727511]
[1724198901264,0.00061905,59306.0,59305.0,0.65309495]
[1724198901466,0.00061905,59306.0,59305.0,0.2029631]
[1724198902244,0.00061905,59306.0,59305.0,0.20633462]
[1724198902636,0.00061905,59306.0,59305.0,0.5806521]
[1724198902884,0.00061905,59306.0,59305.0,0.76702564]
[1724198903060,0.00061905,59306.0,59305.0,0.36743467]
[1724198903269,0.00061905,59306.0,59305.0,0.31688416]
[1724198904817,0.00061905,59306.0,59305.0,0.36743216]
[1724198904957,0.00061905,59306.0,59305.0,0.39270816]
[1724198905155,0.00061905,59306.0,59305.0,0.76703496]
[1724198905557,0.00061905,59306.0,59305.0,0.69121096]
[1724198905844,0.00061905,59306.0,59305.0,0.69221096]
[1724198906046,0.00061905,59306.0,59305.0,0.81856654]
[1724198906258,0.00061905,59306.0,59305.0,0.79329032]
[1724198906759,0.00061905,59306.0,59305.0,0.69221096]
[1724198906903,0.00061905,59306.0,59305.0,0.79329032]
[1724198907110,0.00061905,59306.0,59305.0,0.81856654]
[1724198907311,0.00061905,59306.0,59305.0,0.69221096]
[1724198907527,0.00061905,59306.0,59305.0,0.79328885]
[1724198907728,0.00061905,59306.0,59305.0,0.5782899]
[1724198908095,0.00061905,59306.0,59305.0,0.65409771]
[1724198908313,0.00061905,59306.0,59305.0,0.2039631]
[1724198908515,0.00061905,59306.0,59305.0,0.27977091]
[1724198908714,0.00061905,59306.0,59305.0,0.68273469]
[1724198908969,0.00061905,59306.0,59305.0,0.73837182]
[1724198910365,0.00061905,59306.0,59305.0,0.36404974]
[1724198910571,0.00061905,59306.0,59305.0,0.73837131]
[1724198910976,0.00061905,59306.0,59305.0,0.33876843]
[1724198911181,0.00061905,59306.0,59305.0,0.28487213]
[1724198911355,0.00061905,59306.0,59305.0,0.3353985]
[1724198911757,0.00061905,59306.0,59305.0,0.33538921]
[1724198911971,0.00061905,59306.0,59305.0,0.36065494]
[1724198912380,0.00061905,59306.0,59305.0,0.73497361]
[1724198913655,0.00061905,59306.0,59305.0,0.65918363]
[1724198913860,0.00061905,59306.0,59305.0,0.76022296]
[1724198914063,0.00061905,59306.0,59305.0,0.65919476]
[1724198914704,0.00061905,59306.0,59305.0,0.36065455]
[1724198914945,0.00061905,59306.0,59305.0,0.73497586]
[1724198915148,0.00061905,59306.0,59305.0,0.33539652]
[1724198915661,0.00061905,59306.0,59305.0,0.28487213]
[1724198916090,0.00061905,59306.0,59305.0,0.28824371]
[1724198917295,0.00061905,59306.0,59305.0,0.33877142]
[1724198917490,0.00061905,59306.0,59305.0,0.28824371]
[1724198917691,0.00061905,59306.0,59305.0,0.3387729]
[1724198917871,0.00061905,59306.0,59305.0,0.25449229]
[1724198918070,0.01609404,59306.0,59305.0,0.25449229]
[1724198919041,0.0277326,59306.0,59305.0,0.25449229]
[1724198919769,0.01609404,59306.0,59305.0,0.25449229]
[1724198920375,0.0277323,59306.0,59305.0,0.25449229]
[1724198920707,0.00061905,59306.0,59305.0,0.25449229]
[1724198921163,0.01609345,59306.0,59305.0,0.25449229]
[1724198921336,0.01609345,59306.0,59305.0,0.2039631]
[1724198921337,0.02773201,59306.0,59305.0,0.2039631]
[1724198921541,0.01609345,59306.0,59305.0,0.2039631]
[1724198921740,0.0277308,59306.0,59305.0,0.2039631]
[1724198921941,0.01609345,59306.0,59305.0,0.2039631]
[1724198922151,0.0277308,59306.0,59305.0,0.2039631]
[1724198922373,0.01609345,59306.0,59305.0,0.2039631]
[1724198922531,0.0277308,59306.0,59305.0,0.2039631]
[1724198923332,0.01609345,59306.0,59305.0,0.254519]
[1724198923956,0.02772988,59306.0,59305.0,0.29766547]
[1724198924414,0.02772988,59306.0,59305.0,0.69727541]
[1724198924680,0.01609345,59306.0,59305.0,0.81547541]
[1724198925867,0.01609345,59306.0,59305.0,0.80147541]
[1724198926068,0.01609345,59306.0,59305.0,0.78747541]
[1724198926220,0.01609345,59306.0,59305.0,0.81547541]
[1724198926398,0.01609345,59306.0,59305.0,0.69727541]
[1724198926608,0.01609345,59306.0,59305.0,0.66927541]
[1724198926800,0.01609345,59306.0,59305.0,0.60744156]
[1724198927003,0.01609345,59306.0,59305.0,0.62144156]
[1724198927227,0.01609345,59306.0,59305.0,0.65315448]
[1724198927495,0.01609345,59306.0,59305.0,0.0487631]
[1724198927683,0.15879345,59306.0,59305.0,0.0149031]
[1724198927881,0.23078795,59306.0,59305.0,0.0149031]
[1724198928083,0.25745251,59306.0,59305.0,0.0149031]
[1724198928425,0.23078795,59306.0,59305.0,0.0149031]
[1724198928626,0.18723888,59306.0,59305.0,0.0149031]
[1724198928758,0.23077708,59306.0,59305.0,0.0149031]
[1724198928958,0.2349932,59306.0,59305.0,0.0149031]
[1724198929227,0.004,59291.0,59290.0,0.49229154]
[1724198929421,0.12527092,59291.0,59290.0,0.49229154]
[1724198929563,0.001,59287.0,59284.0,0.0009042]
[1724198929771,0.0445382,59287.0,59284.0,0.0009042]
[1724198929977,0.0465382,59287.0,59284.0,0.0009042]
[1724198930342,0.01160579,59287.0,59284.0,0.0009042]
[1724198930541,0.02707315,59287.0,59284.0,0.0009042]
[1724198930915,0.02707315,59287.0,59286.0,0.0487642]
[1724198931474,0.02707315,59287.0,59286.0,0.11603743]
[1724198931475,0.01160579,59287.0,59286.0,0.11603743]
[1724198931681,0.081,59294.0,59286.0,0.13704159]
[1724198931876,0.1443,59302.0,59291.0,0.03386]
[1724198932139,0.01746748,59301.0,59291.0,0.03286]
[1724198932342,0.01546748,59300.0,59291.0,0.03286]
[1724198932647,0.01546782,59299.0,59291.0,0.03286]
[1724198932843,0.001,59294.0,59287.0,0.03186]
[1724198933074,0.081,59293.0,59287.0,0.03086]
[1724198933667,0.081,59293.0,59292.0,0.02986]
[1724198934090,0.076,59293.0,59292.0,0.02986]
[1724198935866,0.078,59293.0,59292.0,0.03386]
[1724198936168,0.077,59293.0,59292.0,0.03386]
[1724198936335,0.076,59293.0,59292.0,0.02986]
[1724198936468,0.077,59293.0,59292.0,0.02986]
[1724198936670,0.078,59293.0,59292.0,0.03386]
[1724198937070,0.078,59293.0,59292.0,0.02986]
[1724198937281,0.076,59293.0,59292.0,0.02986]
[1724198937489,0.078,59293.0,59292.0,0.03386]
[1724198938265,0.08906443,59293.0,59292.0,0.03386]
[1724198938850,0.08706443,59293.0,59287.0,0.02986]
[1724198939026,0.08706443,59293.0,59292.0,0.04386]
[1724198939027,0.08806443,59293.0,59292.0,0.04386]
[1724198939227,0.08806443,59293.0,59292.0,0.20466]
[1724198939228,0.01306443,59293.0,59292.0,0.20466]
[1724198939445,0.01206443,59293.0,59292.0,0.09616]
[1724198939629,0.0769,59298.0,59292.0,0.09616]
[1724198939830,0.002,59293.0,59292.0,0.12216]
[1724198940060,0.002,59293.0,59292.0,0.1110631]
[1724198940264,0.002,59293.0,59292.0,0.1090631]
[1724198940468,0.002,59293.0,59292.0,0.0427631]
[1724198940818,0.0116235,59293.0,59292.0,0.0149031]
[1724198941021,0.001,59293.0,59292.0,0.0149031]
[1724198941194,0.0116235,59293.0,59292.0,0.0149031]
[1724198941394,0.001,59293.0,59292.0,0.0149031]
[1724198941597,0.0116235,59293.0,59292.0,0.0149031]
[1724198941749,0.086,59293.0,59292.0,0.0149031]
[1724198941955,0.0956235,59293.0,59292.0,0.0139031]
[1724198942155,0.0936235,59293.0,59292.0,0.0139031]
[1724198942355,0.0946235,59293.0,59292.0,0.0149031]
[1724198942571,0.0956235,59293.0,59292.0,0.0289031]
[1724198944489,0.0996235,59293.0,59292.0,0.0289031]
[1724198944689,0.11109388,59293.0,59292.0,0.0289031]
[1724198944896,0.0956235,59293.0,59292.0,0.0289031]
[1724198945441,0.0954553,59293.0,59292.0,0.0289031]
[1724198945617,0.0126235,59293.0,59292.0,0.0289031]
[1724198945820,0.0126235,59293.0,59292.0,0.03227577]
[1724198946225,0.002,59293.0,59292.0,0.03227577]
[1724198946455,0.00179706,59293.0,59292.0,0.0289031]
[1724198948825,0.01241292,59293.0,59292.0,0.0289031]
[1724198949022,0.00179706,59293.0,59292.0,0.1693031]
[1724198949233,0.01241292,59293.0,59292.0,0.22024575]
[1724198949425,0.00179706,59293.0,59292.0,0.21587341]
[1724198949625,0.00179706,59293.0,59292.0,0.1693031]
[1724198949927,0.00179706,59293.0,59292.0,0.17267549]
[1724198950374,0.00179706,59293.0,59292.0,0.1693031]
[1724198950777,0.00179706,59293.0,59292.0,0.2031631]
[1724198951036,0.00179706,59293.0,59292.0,0.22391665]
[1724198953007,0.08671905,59306.0,59292.0,0.19591665]
[1724198953259,0.001,59293.0,59292.0,0.20991665]
[1724198953496,0.002,59293.0,59292.0,0.22291665]
[1724198955189,0.001,59293.0,59292.0,0.20891665]
[1724198955385,0.001,59293.0,59292.0,0.22291665]
[1724198955901,0.001,59293.0,59292.0,0.20891665]
[1724198956298,0.001,59293.0,59292.0,0.22291665]
[1724198956824,0.001,59293.0,59292.0,0.2021631]
[1724198962060,0.01163757,59293.0,59292.0,0.2021631]
[1724198962263,0.001,59293.0,59292.0,0.2021631]
[1724198962497,0.001,59293.0,59292.0,0.20553557]
[1724198964025,0.001821,59293.0,59292.0,0.20553557]
[1724198964504,0.001821,59293.0,59292.0,0.23222171]
[1724198968608,0.01729994,59293.0,59292.0,0.23222171]
[1724198969722,0.01729994,59293.0,59292.0,0.20553557]
[1724198970459,0.01729994,59293.0,59292.0,0.25606865]
[1724198971222,0.001821,59293.0,59292.0,0.25606865]
[1724198971426,0.001821,59293.0,59292.0,0.25610471]
[1724198971815,0.01729863,59293.0,59292.0,0.25610471]
[1724198972331,0.01729863,59293.0,59292.0,0.20553557]
[1724198973455,0.001821,59293.0,59292.0,0.68102461]
[1724198973664,0.001821,59293.0,59292.0,0.79238299]
[1724198973882,0.01105919,59301.0,59295.0,0.001]
[1724198974086,0.01105919,59301.0,59300.0,0.10974814]
[1724198974289,0.02653612,59301.0,59300.0,0.62763775]
[1724198974495,0.01105919,59301.0,59300.0,0.656487]
[1724198975113,0.01105919,59301.0,59300.0,0.55530281]
[1724198975524,0.01105919,59301.0,59300.0,0.56930281]
[1724198975733,0.01105919,59301.0,59300.0,0.66852112]
[1724198976274,0.01105919,59301.0,59300.0,0.76852112]
[1724198976479,0.01105919,59301.0,59300.0,0.89493705]
[1724198976682,0.01105919,59301.0,59300.0,0.90487041]
[1724198977097,0.01105919,59301.0,59300.0,0.91887041]
[1724198977362,0.01105919,59301.0,59300.0,0.79243287]
[1724198977768,0.01105919,59301.0,59300.0,0.6019812]
[1724198977977,0.01105919,59301.0,59300.0,0.72506566]
[1724198978640,0.01105919,59301.0,59300.0,0.59860913]
[1724198979263,0.01105919,59301.0,59300.0,0.69975067]
[1724198980156,0.01105919,59301.0,59300.0,0.59860913]
[1724198980367,0.01105919,59301.0,59300.0,0.68007938]
[1724198980501,0.01105919,59301.0,59300.0,0.68107938]
[1724198980729,0.01105919,59301.0,59300.0,0.76177938]
[1724198981971,0.00061905,59306.0,59305.0,0.001]
[1724198982173,0.00061905,59306.0,59305.0,0.97935921]
[1724198982385,0.00061905,59306.0,59305.0,1.08729513]
[1724198983162,0.00061905,59306.0,59305.0,1.06203154]
[1724198983363,0.00061905,59306.0,59305.0,0.97501659]
[1724198984226,0.00061905,59306.0,59305.0,1.07601734]
[1724198984462,0.00061905,59306.0,59305.0,1.08522597]
[1724198984637,5e-08,59311.0,59310.0,0.001]
[1724198984839,5e-08,59311.0,59310.0,0.55198014]
[1724198985010,5e-08,59311.0,59310.0,0.73233649]
[1724198985218,5e-08,59317.0,59316.0,0.001]
[1724198985425,5e-08,59317.0,59316.0,0.97009833]
[1724198985648,5e-08,59317.0,59316.0,0.99379833]
[1724198985856,5e-08,59317.0,59316.0,0.75487838]
[1724198986058,5e-08,59317.0,59316.0,0.30486983]
[1724198986258,5e-08,59317.0,59316.0,0.20133127]
[1724198986909,5e-08,59317.0,59316.0,0.21533127]
[1724198987519,5e-08,59317.0,59316.0,0.21633127]
[1724198987691,5e-08,59317.0,59316.0,0.19896]
[1724198987915,5e-08,59317.0,59316.0,0.09896]
[1724198988244,5e-08,59317.0,59316.0,0.1573646]
[1724198988427,5e-08,59317.0,59316.0,0.25299358]
[1724198989269,5e-08,59317.0,59316.0,0.2062646]
[1724198989450,5e-08,59317.0,59316.0,0.18889358]
[1724198989642,5e-08,59317.0,59316.0,0.04786]
[1724198989862,5e-08,59317.0,59316.0,0.06186]
[1724198990275,5e-08,59317.0,59316.0,0.07586]
[1724198993012,0.06440005,59317.0,59316.0,0.07586]
[1724198993213,0.13950005,59317.0,59316.0,0.07586]
[1724198993444,0.14978175,59317.0,59316.0,0.07586]
[1724198996262,0.15278175,59317.0,59316.0,0.07586]
[1724198996462,0.14978175,59317.0,59316.0,0.07586]
[1724198996638,0.15078175,59317.0,59316.0,0.07586]